[Event "Titled Tuesday Blitz August 09 Early 2022"]
[White "Rostomyan, Mikayel"]
[Black "Martin Barcelo, Carles"]
[WhiteFideId "13313754"]
[BlackFideId "24561444"]
[WhiteElo "1426"]
[BlackElo "1922"]
[Result "1-0"]
[Round "06"]
[TimeControl "180+1"]
[Date "2022.08.09"]
[WhiteClock "0:00:31"]
[BlackClock "0:00:05"]

1. Nf3 {[%clk 0:03:00]}  b6 {[%clk 0:02:54]} 2. e4 {[%clk 0:02:57]}  Bb7 {[%clk 0:02:52]} 3. Nc3 {[%clk 0:02:57]}  g6 {[%clk 0:02:49]} 4. d4 {[%clk 0:02:56]}  Bg7 {[%clk 0:02:50]} 5. Be3 {[%clk 0:02:55]}  d6 {[%clk 0:02:50]} 6. Bd3 {[%clk 0:02:55]}  Nd7 {[%clk 0:02:50]} 7. Qd2 {[%clk 0:02:55]}  e5 {[%clk 0:02:49]} 8. O-O-O {[%clk 0:02:51]}  Ne7 {[%clk 0:02:49]} 9. h4 {[%clk 0:02:51]}  h5 {[%clk 0:02:48]} 10. Rhg1 {[%clk 0:02:48]}  exd4 {[%clk 0:02:41]} 11. Nxd4 {[%clk 0:02:45]}  Nc5 {[%clk 0:02:37]} 12. f3 {[%clk 0:02:40]}  Qd7 {[%clk 0:02:36]} 13. Bb5 {[%clk 0:02:37]}  c6 {[%clk 0:02:34]} 14. Be2 {[%clk 0:02:37]}  O-O-O {[%clk 0:02:33]} 15. Nb3 {[%clk 0:02:32]}  Qe6 {[%clk 0:02:18]} 16. Kb1 {[%clk 0:02:11]}  Nxb3 {[%clk 0:02:15]} 17. axb3 {[%clk 0:02:10]}  d5 {[%clk 0:02:15]} 18. exd5 {[%clk 0:02:09]}  Nxd5 {[%clk 0:02:15]} 19. Nxd5 {[%clk 0:01:52]}  Qxd5 {[%clk 0:01:55]} 20. Qxd5 {[%clk 0:01:40]}  Rxd5 {[%clk 0:01:56]} 21. Bc4 {[%clk 0:01:24]}  Rxd1+ {[%clk 0:01:51]} 22. Rxd1 {[%clk 0:01:25]}  Re8 {[%clk 0:01:31]} 23. Bf4 {[%clk 0:01:19]}  Re7 {[%clk 0:01:22]} 24. Bg5 {[%clk 0:01:05]}  f6 {[%clk 0:01:22]} 25. Bf4 {[%clk 0:01:04]}  b5 {[%clk 0:01:09]} 26. Bd3 {[%clk 0:01:03]}  f5 {[%clk 0:01:09]} 27. g4 {[%clk 0:01:01]}  hxg4 {[%clk 0:00:50]} 28. fxg4 {[%clk 0:01:00]}  Be5 {[%clk 0:00:28]} 29. Re1 {[%clk 0:00:46]}  Bd6 {[%clk 0:00:12]} 30. Rxe7 {[%clk 0:00:46]}  Bxe7 {[%clk 0:00:13]} 31. gxf5 {[%clk 0:00:47]}  gxf5 {[%clk 0:00:07]} 32. Bxf5+ {[%clk 0:00:46]}  Kd8 {[%clk 0:00:08]} 33. h5 {[%clk 0:00:45]}  Bf6 {[%clk 0:00:07]} 34. h6 {[%clk 0:00:46]}  c5 {[%clk 0:00:04]} 35. Bd6 {[%clk 0:00:42]}  c4 {[%clk 0:00:04]} 36. bxc4 {[%clk 0:00:40]}  bxc4 {[%clk 0:00:05]} 37. Bf8 {[%clk 0:00:41]}  Ke8 {[%clk 0:00:04]} 38. Bc5 {[%clk 0:00:36]}  Bd5 {[%clk 0:00:03]} 39. Bxa7 {[%clk 0:00:34]}  Kf7 {[%clk 0:00:03]} 40. h7 {[%clk 0:00:33]}  Bg7 {[%clk 0:00:02]} 41. Be3 {[%clk 0:00:30]}  Kf8 {[%clk 0:00:02]} 42. Kc1 {[%clk 0:00:28]}  Kf7 {[%clk 0:00:02]} 43. c3 {[%clk 0:00:28]}  Bc6 {[%clk 0:00:01]} 44. Bd4 {[%clk 0:00:27]}  Bd5 {[%clk 0:00:02]} 45. h8=Q {[%clk 0:00:26]}  Bxh8 {[%clk 0:00:02]} 46. Bxh8 {[%clk 0:00:27]}  Ke7 {[%clk 0:00:02]} 47. Bd4 {[%clk 0:00:27]}  Kd6 {[%clk 0:00:03]} 48. Bc2 {[%clk 0:00:27]}  Kc6 {[%clk 0:00:04]} 49. Kd2 {[%clk 0:00:28]}  Kb5 {[%clk 0:00:05]} 50. Ke3 {[%clk 0:00:28]}  Bg8 {[%clk 0:00:05]} 51. Kf4 {[%clk 0:00:28]}  Bf7 {[%clk 0:00:05]} 52. Ke5 {[%clk 0:00:29]}  Bg8 {[%clk 0:00:05]} 53. Kd6 {[%clk 0:00:29]}  Bf7 {[%clk 0:00:06]} 54. Be4 {[%clk 0:00:27]}  Ka4 {[%clk 0:00:05]} 55. Bd5 {[%clk 0:00:27]}  Bxd5 {[%clk 0:00:03]} 56. Kxd5 {[%clk 0:00:28]}  Kb3 {[%clk 0:00:04]} 57. Kc5 {[%clk 0:00:29]}  Kxb2 {[%clk 0:00:04]} 58. Kxc4 {[%clk 0:00:30]}  Ka3 {[%clk 0:00:04]} 59. Kb5 {[%clk 0:00:30]}  Kb3 {[%clk 0:00:04]} 60. c4 {[%clk 0:00:30]}  Kc2 {[%clk 0:00:05]} 61. c5 {[%clk 0:00:31]} 1-0


[Site "https://www.chess.com"]

[Event "Titled Tuesday Blitz August 09 Early 2022"]
[White "Samadov, Read"]
[Black "Mitrabha, Guha"]
[WhiteFideId "13417444"]
[BlackFideId "5057000"]
[WhiteElo "2926"]
[BlackElo "2761"]
[Result "1-0"]
[Round "06"]
[TimeControl "180+1"]
[Date "2022.08.09"]
[WhiteClock "0:01:10"]
[BlackClock "0:00:32"]

1. d4 {[%clk 0:03:00]}  Nf6 {[%clk 0:02:57]} 2. c4 {[%clk 0:03:00]}  e6 {[%clk 0:02:55]} 3. Nf3 {[%clk 0:03:00]}  b6 {[%clk 0:02:55]} 4. g3 {[%clk 0:02:59]}  Ba6 {[%clk 0:02:55]} 5. Qc2 {[%clk 0:02:58]}  c5 {[%clk 0:02:46]} 6. d5 {[%clk 0:02:58]}  exd5 {[%clk 0:02:45]} 7. cxd5 {[%clk 0:02:59]}  Nxd5 {[%clk 0:02:41]} 8. Qe4+ {[%clk 0:02:58]}  Ne7 {[%clk 0:02:41]} 9. Qxa8 {[%clk 0:02:54]}  Nec6 {[%clk 0:02:41]} 10. Bf4 {[%clk 0:02:30]}  d6 {[%clk 0:02:34]} 11. e4 {[%clk 0:02:14]}  Bxf1 {[%clk 0:01:54]} 12. Kxf1 {[%clk 0:02:13]}  Qc8 {[%clk 0:01:51]} 13. e5 {[%clk 0:01:55]}  Be7 {[%clk 0:01:25]} 14. exd6 {[%clk 0:01:44]}  Bf6 {[%clk 0:01:25]} 15. Nc3 {[%clk 0:01:20]}  O-O {[%clk 0:01:22]} 16. Nd5 {[%clk 0:01:18]}  Bxb2 {[%clk 0:01:06]} 17. Re1 {[%clk 0:01:11]}  Qa6+ {[%clk 0:00:32]} 18. Kg2 {[%clk 0:01:10]} 1-0


[Site "https://www.chess.com"]

[Event "Titled Tuesday Blitz August 09 Early 2022"]
[White "Samant Aditya S"]
[Black "Azarov, Sergei"]
[WhiteFideId "35080580"]
[BlackFideId "13501470"]
[WhiteElo "2641"]
[BlackElo "2797"]
[Result "1-0"]
[Round "06"]
[TimeControl "180+1"]
[Date "2022.08.09"]
[WhiteClock "0:00:07"]
[BlackClock "0:00:12"]

1. Nf3 {[%clk 0:03:00]}  Nf6 {[%clk 0:02:59]} 2. b3 {[%clk 0:03:00]}  e6 {[%clk 0:02:58]} 3. Bb2 {[%clk 0:03:00]}  d5 {[%clk 0:02:59]} 4. e3 {[%clk 0:03:00]}  Be7 {[%clk 0:03:00]} 5. c4 {[%clk 0:03:01]}  b6 {[%clk 0:02:59]} 6. Nc3 {[%clk 0:02:58]}  Bb7 {[%clk 0:02:59]} 7. cxd5 {[%clk 0:02:58]}  exd5 {[%clk 0:02:59]} 8. d4 {[%clk 0:02:54]}  O-O {[%clk 0:02:59]} 9. Bd3 {[%clk 0:02:55]}  a6 {[%clk 0:02:59]} 10. O-O {[%clk 0:02:55]}  Nbd7 {[%clk 0:02:59]} 11. Qc2 {[%clk 0:02:51]}  Bd6 {[%clk 0:02:59]} 12. Ne2 {[%clk 0:02:50]}  Re8 {[%clk 0:02:57]} 13. Ng3 {[%clk 0:02:48]}  g6 {[%clk 0:02:57]} 14. Rfe1 {[%clk 0:02:42]}  Qe7 {[%clk 0:02:49]} 15. Rac1 {[%clk 0:02:36]}  a5 {[%clk 0:02:41]} 16. Ne2 {[%clk 0:02:30]}  Ne4 {[%clk 0:02:37]} 17. Nc3 {[%clk 0:02:26]}  Nxc3 {[%clk 0:02:35]} 18. Bxc3 {[%clk 0:02:27]}  Nf6 {[%clk 0:02:12]} 19. Bb2 {[%clk 0:02:22]}  Ne4 {[%clk 0:02:09]} 20. Ne5 {[%clk 0:01:59]}  Rac8 {[%clk 0:01:31]} 21. f3 {[%clk 0:01:31]}  c5 {[%clk 0:01:13]} 22. Qb1 {[%clk 0:00:30]}  Nf6 {[%clk 0:01:12]} 23. Qa1 {[%clk 0:00:30]}  Nd7 {[%clk 0:00:56]} 24. Bb5 {[%clk 0:00:20]}  Bxe5 {[%clk 0:00:38]} 25. dxe5 {[%clk 0:00:21]}  Bc6 {[%clk 0:00:38]} 26. Bxc6 {[%clk 0:00:17]}  Rxc6 {[%clk 0:00:39]} 27. Rcd1 {[%clk 0:00:13]}  Nxe5 {[%clk 0:00:34]} 28. Rxd5 {[%clk 0:00:13]}  Re6 {[%clk 0:00:35]} 29. e4 {[%clk 0:00:13]}  c4 {[%clk 0:00:25]} 30. Bxe5 {[%clk 0:00:12]}  Rxe5 {[%clk 0:00:25]} 31. bxc4 {[%clk 0:00:12]}  f5 {[%clk 0:00:20]} 32. Rxe5 {[%clk 0:00:10]}  Qxe5 {[%clk 0:00:20]} 33. Qxe5 {[%clk 0:00:10]}  Rxe5 {[%clk 0:00:21]} 34. Kf2 {[%clk 0:00:11]}  Rc5 {[%clk 0:00:21]} 35. Rc1 {[%clk 0:00:07]}  b5 {[%clk 0:00:12]} 36. Ke3 {[%clk 0:00:08]}  fxe4 {[%clk 0:00:11]} 37. fxe4 {[%clk 0:00:08]}  b4 {[%clk 0:00:12]} 38. Kd4 {[%clk 0:00:08]}  Rc8 {[%clk 0:00:12]} 39. c5 {[%clk 0:00:08]}  Kf7 {[%clk 0:00:13]} 40. c6 {[%clk 0:00:08]}  Ke6 {[%clk 0:00:14]} 41. Kc5 {[%clk 0:00:08]}  Ke5 {[%clk 0:00:14]} 42. Kb6 {[%clk 0:00:08]}  a4 {[%clk 0:00:15]} 43. Rc4 {[%clk 0:00:06]}  b3 {[%clk 0:00:14]} 44. axb3 {[%clk 0:00:07]}  axb3 {[%clk 0:00:15]} 45. c7 {[%clk 0:00:08]}  b2 {[%clk 0:00:15]} 46. Rb4 {[%clk 0:00:08]}  b1=Q {[%clk 0:00:11]} 47. Rxb1 {[%clk 0:00:08]}  Kxe4 {[%clk 0:00:12]} 48. Kb7 {[%clk 0:00:08]}  Re8 {[%clk 0:00:12]} 49. Re1+ {[%clk 0:00:07]} 1-0


[Site "https://www.chess.com"]

[Event "Titled Tuesday Blitz August 09 Early 2022"]
[White "Sarana, Alexey"]
[Black "Salem, A.R. Saleh"]
[WhiteFideId "24133795"]
[BlackFideId "9301348"]
[WhiteElo "3072"]
[BlackElo "2909"]
[Result "0-1"]
[Round "06"]
[TimeControl "180+1"]
[Date "2022.08.09"]
[WhiteClock "0:00:05"]
[BlackClock "0:00:16"]

1. d4 {[%clk 0:03:00]}  d5 {[%clk 0:03:00]} 2. c4 {[%clk 0:03:01]}  e6 {[%clk 0:03:01]} 3. Nc3 {[%clk 0:03:02]}  Nf6 {[%clk 0:03:02]} 4. cxd5 {[%clk 0:03:02]}  exd5 {[%clk 0:03:03]} 5. Bf4 {[%clk 0:03:02]}  Bd6 {[%clk 0:03:02]} 6. Bxd6 {[%clk 0:03:02]}  Qxd6 {[%clk 0:03:03]} 7. e3 {[%clk 0:03:03]}  Bf5 {[%clk 0:03:00]} 8. Nge2 {[%clk 0:03:03]}  O-O {[%clk 0:02:57]} 9. Ng3 {[%clk 0:03:03]}  Bg6 {[%clk 0:02:51]} 10. h4 {[%clk 0:03:03]}  Re8 {[%clk 0:02:33]} 11. h5 {[%clk 0:02:23]}  Rxe3+ {[%clk 0:02:33]} 12. Nce2 {[%clk 0:02:23]}  Rd3 {[%clk 0:02:24]} 13. Qa4 {[%clk 0:02:20]}  Be4 {[%clk 0:02:00]} 14. f3 {[%clk 0:02:19]}  Nc6 {[%clk 0:01:57]} 15. fxe4 {[%clk 0:02:13]}  Nxd4 {[%clk 0:01:53]} 16. Nf5 {[%clk 0:01:37]}  Nxf5 {[%clk 0:01:53]} 17. exf5 {[%clk 0:01:37]}  Re8 {[%clk 0:01:51]} 18. Rh3 {[%clk 0:01:26]}  Re4 {[%clk 0:01:34]} 19. Qxa7 {[%clk 0:01:11]}  Qb4+ {[%clk 0:00:58]} 20. Kf2 {[%clk 0:01:10]}  Rxh3 {[%clk 0:00:55]} 21. gxh3 {[%clk 0:01:11]}  Qxb2 {[%clk 0:00:55]} 22. Rd1 {[%clk 0:00:59]}  h6 {[%clk 0:00:54]} 23. Qb8+ {[%clk 0:00:55]}  Re8 {[%clk 0:00:41]} 24. Qxc7 {[%clk 0:00:55]}  b5 {[%clk 0:00:40]} 25. Kg1 {[%clk 0:00:25]}  Rxe2 {[%clk 0:00:27]} 26. Bxe2 {[%clk 0:00:26]}  Qxe2 {[%clk 0:00:27]} 27. Rf1 {[%clk 0:00:26]}  Qe3+ {[%clk 0:00:25]} 28. Kg2 {[%clk 0:00:26]}  Ne4 {[%clk 0:00:18]} 29. Qb8+ {[%clk 0:00:17]}  Kh7 {[%clk 0:00:18]} 30. Qf4 {[%clk 0:00:18]}  Qe2+ {[%clk 0:00:18]} 31. Kg1 {[%clk 0:00:18]}  Nf6 {[%clk 0:00:17]} 32. Rf2 {[%clk 0:00:17]}  Qxh5 {[%clk 0:00:16]} 33. Qf3 {[%clk 0:00:14]}  Qh4 {[%clk 0:00:16]} 34. Rg2 {[%clk 0:00:13]}  Qd4+ {[%clk 0:00:16]} 35. Kh2 {[%clk 0:00:13]}  Ne4 {[%clk 0:00:17]} 36. Qf4 {[%clk 0:00:12]}  b4 {[%clk 0:00:16]} 37. h4 {[%clk 0:00:09]}  Qf6 {[%clk 0:00:16]} 38. Kg1 {[%clk 0:00:06]}  Qb6+ {[%clk 0:00:15]} 39. Kh2 {[%clk 0:00:07]}  Qd8 {[%clk 0:00:16]} 40. Kg1 {[%clk 0:00:06]}  Qf6 {[%clk 0:00:16]} 41. Kh2 {[%clk 0:00:07]}  Nc3 {[%clk 0:00:15]} 42. Qxb4 {[%clk 0:00:05]}  d4 {[%clk 0:00:15]} 43. Qb8 {[%clk 0:00:04]}  Qxh4+ {[%clk 0:00:15]} 44. Kg1 {[%clk 0:00:05]}  Qe1+ {[%clk 0:00:16]} 45. Kh2 {[%clk 0:00:05]}  Qh4+ {[%clk 0:00:16]} 46. Kg1 {[%clk 0:00:06]}  Ne4 {[%clk 0:00:15]} 47. Qe5 {[%clk 0:00:05]}  Ng5 {[%clk 0:00:16]} 48. Qg3 {[%clk 0:00:03]}  Qe4 {[%clk 0:00:15]} 49. Rf2 {[%clk 0:00:02]}  Qe1+ {[%clk 0:00:15]} 50. Kg2 {[%clk 0:00:02]}  Qe4+ {[%clk 0:00:15]} 51. Kh2 {[%clk 0:00:01]}  d3 {[%clk 0:00:15]} 52. f6 {[%clk 0:00:02]}  gxf6 {[%clk 0:00:15]} 53. Qf4 {[%clk 0:00:01]}  Qxf4+ {[%clk 0:00:12]} 54. Rxf4 {[%clk 0:00:02]}  d2 {[%clk 0:00:13]} 55. Rf1 {[%clk 0:00:03]}  Nf3+ {[%clk 0:00:14]} 56. Kg3 {[%clk 0:00:03]}  Ne1 {[%clk 0:00:14]} 57. Rxf6 {[%clk 0:00:03]}  d1=Q {[%clk 0:00:15]} 58. Rxf7+ {[%clk 0:00:04]}  Kg6 {[%clk 0:00:15]} 59. Rf1 {[%clk 0:00:05]}  Qd3+ {[%clk 0:00:15]} 60. Kf2 {[%clk 0:00:05]}  Qd2+ {[%clk 0:00:15]} 61. Kg1 {[%clk 0:00:05]}  Qg2# {[%clk 0:00:16]} 0-1


[Site "https://www.chess.com"]

[Event "Titled Tuesday Blitz August 09 Early 2022"]
[White "Sarkar, Justin"]
[Black "Sanchez, Robert"]
[WhiteFideId "2010011"]
[BlackFideId "2034360"]
[WhiteElo "2076"]
[BlackElo "2266"]
[Result "0-1"]
[Round "06"]
[TimeControl "180+1"]
[Date "2022.08.09"]
[WhiteClock "0:00:01"]
[BlackClock "0:01:14"]

1. h3 {[%clk 0:02:57]}  d5 {[%clk 0:02:59]} 2. c3 {[%clk 0:02:55]}  e5 {[%clk 0:03:00]} 3. d4 {[%clk 0:02:54]}  Nc6 {[%clk 0:02:59]} 4. dxe5 {[%clk 0:02:53]}  Nxe5 {[%clk 0:02:59]} 5. Bf4 {[%clk 0:02:53]}  Ng6 {[%clk 0:02:59]} 6. Bh2 {[%clk 0:02:53]}  Nf6 {[%clk 0:02:59]} 7. e3 {[%clk 0:02:49]}  c6 {[%clk 0:02:53]} 8. Nf3 {[%clk 0:02:48]}  Be7 {[%clk 0:02:50]} 9. Nbd2 {[%clk 0:02:40]}  O-O {[%clk 0:02:50]} 10. Bd3 {[%clk 0:02:33]}  Re8 {[%clk 0:02:49]} 11. Qc2 {[%clk 0:02:25]}  Be6 {[%clk 0:02:44]} 12. O-O-O {[%clk 0:02:10]}  b5 {[%clk 0:02:42]} 13. Nd4 {[%clk 0:02:05]}  Bd7 {[%clk 0:02:40]} 14. h4 {[%clk 0:01:59]}  Bf8 {[%clk 0:02:31]} 15. h5 {[%clk 0:01:47]}  Ne5 {[%clk 0:02:29]} 16. h6 {[%clk 0:01:07]}  Nxd3+ {[%clk 0:02:22]} 17. Qxd3 {[%clk 0:01:08]}  g6 {[%clk 0:02:22]} 18. Bf4 {[%clk 0:00:57]}  Qa5 {[%clk 0:02:17]} 19. Kb1 {[%clk 0:00:04]}  c5 {[%clk 0:02:13]} 20. N4b3 {[%clk 0:00:04]}  Qb6 {[%clk 0:02:05]} 21. Qe2 {[%clk 0:00:04]}  a5 {[%clk 0:02:02]} 22. f3 {[%clk 0:00:03]}  a4 {[%clk 0:02:01]} 23. Nc1 {[%clk 0:00:03]}  b4 {[%clk 0:01:52]} 24. c4 {[%clk 0:00:03]}  d4 {[%clk 0:01:41]} 25. e4 {[%clk 0:00:03]}  Bc6 {[%clk 0:01:35]} 26. Nd3 {[%clk 0:00:03]}  Nd7 {[%clk 0:01:26]} 27. g4 {[%clk 0:00:03]}  Bb7 {[%clk 0:01:21]} 28. g5 {[%clk 0:00:03]}  Qc6 {[%clk 0:01:20]} 29. Rhe1 {[%clk 0:00:03]}  Nb6 {[%clk 0:01:20]} 30. Qf2 {[%clk 0:00:02]}  Ba6 {[%clk 0:01:20]} 31. Rc1 {[%clk 0:00:03]}  Qe6 {[%clk 0:01:17]} 32. Qg3 {[%clk 0:00:02]}  Nxc4 {[%clk 0:01:14]} 33. Nxc4 {[%clk 0:00:01]}  Bxc4 {[%clk 0:01:14]} 0-1


[Site "https://www.chess.com"]

[Event "Titled Tuesday Blitz August 09 Early 2022"]
[White "Seemann, Jakub"]
[Black "Sztokbant, Bernardo Vainzoff"]
[WhiteFideId "21874697"]
[BlackFideId "2115956"]
[WhiteElo "2064"]
[BlackElo "2209"]
[Result "1/2-1/2"]
[Round "06"]
[TimeControl "180+1"]
[Date "2022.08.09"]
[WhiteClock "0:00:06"]
[BlackClock "0:00:04"]

1. b3 {[%clk 0:03:00]}  Nf6 {[%clk 0:02:54]} 2. Bb2 {[%clk 0:02:58]}  d5 {[%clk 0:02:48]} 3. Nf3 {[%clk 0:02:57]}  g6 {[%clk 0:02:46]} 4. g3 {[%clk 0:02:57]}  Bg7 {[%clk 0:02:46]} 5. Bg2 {[%clk 0:02:58]}  O-O {[%clk 0:02:46]} 6. O-O {[%clk 0:02:58]}  Nc6 {[%clk 0:02:47]} 7. c4 {[%clk 0:02:57]}  dxc4 {[%clk 0:02:47]} 8. bxc4 {[%clk 0:02:57]}  Bg4 {[%clk 0:02:44]} 9. h3 {[%clk 0:02:55]}  Bxf3 {[%clk 0:02:44]} 10. Bxf3 {[%clk 0:02:55]}  Nd4 {[%clk 0:02:43]} 11. Bg2 {[%clk 0:02:53]}  c5 {[%clk 0:02:41]} 12. Nc3 {[%clk 0:02:51]}  Qd7 {[%clk 0:02:36]} 13. d3 {[%clk 0:02:47]}  Rad8 {[%clk 0:02:29]} 14. Rb1 {[%clk 0:02:46]}  b6 {[%clk 0:02:24]} 15. Qd2 {[%clk 0:02:34]}  h5 {[%clk 0:02:24]} 16. h4 {[%clk 0:02:31]}  Kh7 {[%clk 0:02:21]} 17. e3 {[%clk 0:02:30]}  Nf5 {[%clk 0:02:14]} 18. Rfd1 {[%clk 0:02:30]}  Ng4 {[%clk 0:02:10]} 19. Qe2 {[%clk 0:02:27]}  Bh6 {[%clk 0:01:58]} 20. Nd5 {[%clk 0:02:26]}  e6 {[%clk 0:01:56]} 21. Nf6+ {[%clk 0:02:23]}  Nxf6 {[%clk 0:01:56]} 22. Bxf6 {[%clk 0:02:24]}  Rde8 {[%clk 0:01:49]} 23. d4 {[%clk 0:02:23]}  cxd4 {[%clk 0:01:44]} 24. exd4 {[%clk 0:02:24]}  Bg7 {[%clk 0:01:37]} 25. Bxg7 {[%clk 0:02:19]}  Kxg7 {[%clk 0:01:38]} 26. Qb2 {[%clk 0:02:14]}  Kg8 {[%clk 0:01:33]} 27. d5 {[%clk 0:02:14]}  e5 {[%clk 0:01:29]} 28. c5 {[%clk 0:02:07]}  bxc5 {[%clk 0:01:29]} 29. Qb7 {[%clk 0:02:08]}  Re7 {[%clk 0:01:17]} 30. Qa6 {[%clk 0:02:01]}  Nd6 {[%clk 0:01:10]} 31. Rdc1 {[%clk 0:01:56]}  Rc8 {[%clk 0:01:09]} 32. Kh2 {[%clk 0:01:47]}  e4 {[%clk 0:01:06]} 33. Bh3 {[%clk 0:01:47]}  f5 {[%clk 0:00:59]} 34. Bf1 {[%clk 0:01:38]}  e3 {[%clk 0:00:48]} 35. fxe3 {[%clk 0:01:38]}  Rxe3 {[%clk 0:00:48]} 36. Re1 {[%clk 0:01:38]}  Rce8 {[%clk 0:00:43]} 37. Rxe3 {[%clk 0:01:30]}  Rxe3 {[%clk 0:00:44]} 38. Rb8+ {[%clk 0:01:17]}  Kh7 {[%clk 0:00:27]} 39. Qc6 {[%clk 0:01:14]}  Qxc6 {[%clk 0:00:18]} 40. dxc6 {[%clk 0:01:14]}  Re7 {[%clk 0:00:19]} 41. Rd8 {[%clk 0:01:09]}  Nf7 {[%clk 0:00:19]} 42. Rd5 {[%clk 0:01:02]}  Rc7 {[%clk 0:00:16]} 43. Rxc5 {[%clk 0:01:01]}  Nd8 {[%clk 0:00:15]} 44. Bb5 {[%clk 0:00:59]}  Kg7 {[%clk 0:00:14]} 45. Rd5 {[%clk 0:00:57]}  Ne6 {[%clk 0:00:14]} 46. Rd6 {[%clk 0:00:55]}  Nc5 {[%clk 0:00:08]} 47. Kg2 {[%clk 0:00:49]}  Kf7 {[%clk 0:00:08]} 48. Kf3 {[%clk 0:00:46]}  Ne4 {[%clk 0:00:08]} 49. Rd4 {[%clk 0:00:39]}  Ke7 {[%clk 0:00:07]} 50. Kf4 {[%clk 0:00:38]}  Nd6 {[%clk 0:00:05]} 51. Ba4 {[%clk 0:00:37]}  Ne4 {[%clk 0:00:05]} 52. a3 {[%clk 0:00:29]}  Nc3 {[%clk 0:00:05]} 53. Kg5 {[%clk 0:00:24]}  Nxa4 {[%clk 0:00:04]} 54. Rxa4 {[%clk 0:00:25]}  Kf7 {[%clk 0:00:04]} 55. Rc4 {[%clk 0:00:22]}  Kg7 {[%clk 0:00:03]} 56. a4 {[%clk 0:00:21]}  Kf7 {[%clk 0:00:03]} 57. a5 {[%clk 0:00:21]}  a6 {[%clk 0:00:02]} 58. Rb4 {[%clk 0:00:15]}  Rxc6 {[%clk 0:00:02]} 59. Rb7+ {[%clk 0:00:15]}  Ke6 {[%clk 0:00:01]} 60. Kxg6 {[%clk 0:00:12]}  Rc3 {[%clk 0:00:02]} 61. Rb6+ {[%clk 0:00:11]}  Ke5 {[%clk 0:00:02]} 62. Rxa6 {[%clk 0:00:11]}  Rxg3+ {[%clk 0:00:03]} 63. Kxh5 {[%clk 0:00:11]}  f4 {[%clk 0:00:02]} 64. Ra8 {[%clk 0:00:10]}  f3 {[%clk 0:00:02]} 65. Rf8 {[%clk 0:00:10]}  Ke4 {[%clk 0:00:02]} 66. a6 {[%clk 0:00:10]}  Rg7 {[%clk 0:00:03]} 67. Rf6 {[%clk 0:00:06]}  Ke3 {[%clk 0:00:02]} 68. Kh6 {[%clk 0:00:06]}  Ra7 {[%clk 0:00:02]} 69. h5 {[%clk 0:00:06]}  Ke2 {[%clk 0:00:03]} 70. Kg5 {[%clk 0:00:06]}  f2 {[%clk 0:00:03]} 71. h6 {[%clk 0:00:05]}  Rxa6 {[%clk 0:00:03]} 72. Rxa6 {[%clk 0:00:03]}  f1=Q {[%clk 0:00:02]} 73. Re6+ {[%clk 0:00:03]}  Kd3 {[%clk 0:00:02]} 74. Rf6 {[%clk 0:00:04]}  Qc1+ {[%clk 0:00:02]} 75. Kg6 {[%clk 0:00:04]}  Qg1+ {[%clk 0:00:02]} 76. Kf7 {[%clk 0:00:04]}  Qa7+ {[%clk 0:00:01]} 77. Kg6 {[%clk 0:00:04]}  Qe7 {[%clk 0:00:02]} 78. h7 {[%clk 0:00:03]}  Qe4+ {[%clk 0:00:02]} 79. Kg7 {[%clk 0:00:04]}  Qg4+ {[%clk 0:00:02]} 80. Kf7 {[%clk 0:00:02]}  Qd7+ {[%clk 0:00:02]} 81. Kg6 {[%clk 0:00:03]}  Qg4+ {[%clk 0:00:03]} 82. Kf7 {[%clk 0:00:03]}  Qh5+ {[%clk 0:00:03]} 83. Kg7 {[%clk 0:00:03]}  Qg5+ {[%clk 0:00:03]} 84. Rg6 {[%clk 0:00:04]}  Qe7+ {[%clk 0:00:03]} 85. Kh6 {[%clk 0:00:04]}  Qh4+ {[%clk 0:00:03]} 86. Kg7 {[%clk 0:00:05]}  Qe7+ {[%clk 0:00:03]} 87. Kg8 {[%clk 0:00:05]}  Qe8+ {[%clk 0:00:03]} 88. Kg7 {[%clk 0:00:06]}  Qe7+ {[%clk 0:00:04]} 1/2-1/2


[Site "https://www.chess.com"]

[Event "Titled Tuesday Blitz August 09 Early 2022"]
[White "Senlle Caride, Miguel"]
[Black "Golding, Alex"]
[WhiteFideId "2282500"]
[BlackFideId "427241"]
[WhiteElo "2339"]
[BlackElo "2029"]
[Result "0-1"]
[Round "06"]
[TimeControl "180+1"]
[Date "2022.08.09"]
[WhiteClock "0:00:58"]
[BlackClock "0:02:05"]

1. g3 {[%clk 0:03:00]}  e5 {[%clk 0:02:58]} 2. Bg2 {[%clk 0:03:01]}  d5 {[%clk 0:02:57]} 3. c4 {[%clk 0:03:02]}  d4 {[%clk 0:02:56]} 4. d3 {[%clk 0:03:01]}  Nc6 {[%clk 0:02:49]} 5. Nf3 {[%clk 0:02:48]}  f6 {[%clk 0:02:46]} 6. O-O {[%clk 0:02:47]}  Bc5 {[%clk 0:02:43]} 7. a3 {[%clk 0:02:37]}  a5 {[%clk 0:02:43]} 8. Bd2 {[%clk 0:02:36]}  Bd7 {[%clk 0:02:42]} 9. e3 {[%clk 0:02:33]}  Nge7 {[%clk 0:02:42]} 10. exd4 {[%clk 0:02:33]}  Nxd4 {[%clk 0:02:39]} 11. Nxd4 {[%clk 0:02:32]}  Bxd4 {[%clk 0:02:39]} 12. Nc3 {[%clk 0:02:32]}  Bc6 {[%clk 0:02:36]} 13. Qg4 {[%clk 0:02:24]}  O-O {[%clk 0:02:24]} 14. Bh6 {[%clk 0:02:07]}  Rf7 {[%clk 0:02:24]} 15. Nd5 {[%clk 0:02:04]}  Nxd5 {[%clk 0:02:20]} 16. cxd5 {[%clk 0:02:04]}  Bxd5 {[%clk 0:02:20]} 17. Bxd5 {[%clk 0:02:03]}  Qxd5 {[%clk 0:02:20]} 18. Rac1 {[%clk 0:02:02]}  c6 {[%clk 0:02:20]} 19. b4 {[%clk 0:02:00]}  axb4 {[%clk 0:02:16]} 20. axb4 {[%clk 0:02:01]}  f5 {[%clk 0:02:11]} 21. Qg5 {[%clk 0:01:59]}  Ra2 {[%clk 0:02:09]} 22. Rb1 {[%clk 0:01:44]}  Qf3 {[%clk 0:02:06]} 23. Bxg7 {[%clk 0:00:58]}  Bxf2+ {[%clk 0:02:04]} 24. Rxf2 {[%clk 0:00:57]}  Qxf2+ {[%clk 0:02:04]} 25. Kh1 {[%clk 0:00:58]}  Qg2# {[%clk 0:02:05]} 0-1


[Site "https://www.chess.com"]